Workbook

Sheet INSTRUCTIONS
A1: REPARABILITY INDEX WORKSHEET OF TELEVISION
A2: GENERAL INSTRUCTIONS
A4: PURPOSE OF THE FILE
A5: This Excel file calculate the reparability index of a television.
A7: REGULATORY FRAMEWORK
A8: Article L. 541-9-2 of the French Environmental Code states that : Manufacturers, importers, marketers and other retailers which put electrical and electronic equipment (EEE) on the French market have to inform, free of charge, downstream sellers and any person who made the request of "the reparability index" of their products, as well as the paramaters explaining how such index was established. This reparability index will inform consumers about the ability to repair the product category concerned. All information entered in this file must be truthful and verifiable.
A9: The methods and rules of implementation for the reparabilty index are specified in the reparabilty index Decree N°2020-xxx 2020 (date) for electrical and electronic equipment (EEE), the Decision XXXX (date) on display conditions and parameters for calculating the reparability index and the Decision XXXX (date) on criteria, subcritera, rating system and display of the reparability index of televisions.
A11: A complementary instructions manual provides explanatory informations and additional instructions on how to apply Decree and Orders of the reparability index of electrical and electronic equipement.
A13: FILE CONTENT
A14: General instructions | B14: Description of the purpose of this Excel file, description of regulatory framework of the reparabily index and description of file content and how it will be completed.
A15: C1_Documentation | B15: Detailed criteria used to calculate the reparability index of the product. On each tab page, all 'orange boxes' must be completed by selecting the right information from the 'drop-down list' or by directly entered the right information in the box (e.g. criterion 4 : price and file to be send). When the information is enterred, the concerned box change to 'green'. No box should be left unanswered.
A16: C2_Disassembly
A17: C3_Availability of spare parts
A18: C4_Price
A19: C5_Specific
A20: Final score | B20: This tab automatically calculate final score of the reparability index of the product and also scores per criteria and sub-criteria, before and after weighting.
A21: Note finale | B21: This tab is the French translation of the "Final score" tab. It is automatically completed. This tab is to be sent to all applicants.
A22: Annex 1 | B22: Details about the therminology used for the reparability index.
A23: Annex 2 | B23: Details about the list of "basic" tools and their reference standards.
A24: Annex 3 | B24: Details and application case about the concept of disassembly step.
A26: REINTIALISER LES CHOIX | B26: This button resets all data entered into the file. If you want to execute this action, please enable macros and click on the button. WARNING: this action cannot be undone.
A29: OTHER DETAILS OF A TRANSVERSAL NATURE
A30: Use of European vocabulary (criteria 1, 2 and 3)
A31: The vocabulary used to describe the information to be documented, whatever the category concerned, as well as certain spare parts, is taken from Commission Regulation (EU) 2019/2023 of 1 October 2019 for washing machines and Commission Regulation (EU) 2019/2021 of 1 October 2019 for electronic displays. The list of these documents and items is given in Annex 1 of this notice.
A32: Different commitments of availability period between documentation and spare parts (criteria 1 and 3)
A33: The producer or importer may make different commitments for the periods of availability of documentation and spare parts for the same equipment, for example: 9 years for the availability of documentation and 7 years for the availability of spare parts.
A34: Absence of a part on the equipment
A35: If the equipment does not include a part listed in List 1 or 2 of the category concerned, then the points corresponding to the part in question are awarded. For WIFI and Bluetooth modules, see the special case of televisions below.
A36: Concerning criterion 4 relating to price, the price of the absent part does not appear in the calculation.
A37: Televisions
A38: External power source and remote control
A39: The external power source and the remote control do not need to be disassembled for counting the disassembly steps. The steps to be counted are limited to disconnecting the power source and removing the battery from the remote control.

Sheet C1_DOCUMENTATION
A1: CRITERION 1 : DOCUMENTATION | H1: Television
A4: SUB-CRITERION 1.1 : COMMITMENT ON THE AVAILABILITY OVER TIME (WITHOUT CHARGE) OF THE TECHNICAL DOCUMENTATION AND THE OTHER DOCUMENTATION RELATED TO USER AND MAINTENANCE INSTRUCTIONS
A7: ADDITIONAL INFORMATIONS:
A8: Documents/informations: The information can be freely distributed at the initiative of the producer in various physical or dematerialized
A9: documents. Scoring points are awarded if the information referred to is available in any document.
A10: Language of documents: In accordance with the law of August 4, 1994 on the use of the French language, information intended for
A11: consumers must be drawn up in French ; English is tolerated for very technical aspects intended for professional repairers (example:
A12: technical bulletins).
A13: Technical bulletins: This wording covers announcements made by the producer to professional repairers, informing them, for example, of
A14: recently discovered bugs, of the corrections to be made, of the supply disruption of parts which have been replaced by others. Points are
A15: awarded if the edition of a technical bulletin is planned on an ongoing basis (when necessary).
A16: Information on access to professional repairers: The producer or importer is free to indicate to consumers the professional repairers of his
A17: choice, but it is advisable to mention at least the repairer directories listed by Ademe : www.annuaire-reparation.fr
A18: Instructions for self-repair: Points corresponding to years of availability are only granted if one or more operations are specified to
A19: consumers for self-repair, with adequate safety instructions, in a specific section under the title “self-repair”, for example in the technical
A20: manual or of the instructions for use and maintenance. Article L 441-5 of the Consumer Code specifies the responsibility of the producer
A21: regarding self-repair.
A27: Commitment on the availability over time of the documentation (in years) | D27: Column B | F27: Column C
D28: Repairers | F28: Consumers
A29: Type of documentation | D29: Duration of availability | E29: Subtotal | F29: Duration of availability | G29: Subtotal
A30: 1.1.A | B30: The unequivocal identification of the product (type of product, trademark, trade name, model, and possibly, serial number) | D30: if X ≥ 11 years | E30: =IF(D30="if ND ou X < 7 years",0,IF(D30="if 7 years ≤ X < 9 years",7,IF(D30="if 9 years ≤ X < 11 years",9,IF(D30="if X ≥ 11 years",11,0)))) -> 11 | F30: if 7 years ≤ X < 9 years | G30: =IF(F30="if ND ou X < 7 years",0,IF(F30="if 7 years ≤ X < 9 years",7,IF(F30="if 9 years ≤ X < 11 years",9,IF(F30="if X ≥ 11 years",11,0)))) -> 7
A31: 1.1.B | B31: A dissasembly map or exploded view | D31: if 9 years ≤ X < 11 years | E31: =IF(D31="if ND ou X < 7 years",0,IF(D31="if 7 years ≤ X < 9 years",7,IF(D31="if 9 years ≤ X < 11 years",9,IF(D31="if X ≥ 11 years",11,0)))) -> 9 | F31: if NA or X < 7 years | G31: =IF(F31="if ND ou X < 7 years",0,IF(F31="if 7 years ≤ X < 9 years",7,IF(F31="if 9 years ≤ X < 11 years",9,IF(F31="if X ≥ 11 years",11,0)))) -> 0
A32: 1.1.C | B32: Wiring and connection diagrams | D32: if NA or X < 7 years | E32: 0 | F32: if NA or X < 7 years | G32: =IF(F32="if ND ou X < 7 years",0,IF(F32="if 7 years ≤ X < 9 years",7,IF(F32="if 9 years ≤ X < 11 years",9,IF(F32="if X ≥ 11 years",11,0)))) -> 0
A33: 1.1.D | B33: Electronic boards diagrams | D33: if NA or X < 7 years | E33: 0 | F33: if NA or X < 7 years | G33: =IF(F33="if ND ou X < 7 years",0,IF(F33="if 7 years ≤ X < 9 years",7,IF(F33="if 9 years ≤ X < 11 years",9,IF(F33="if X ≥ 11 years",11,0)))) -> 0
A34: 1.1.E | B34: List of necessary repair and test equipment | D34: if 9 years ≤ X < 11 years | E34: 9 | F34: if NA or X < 7 years | G34: =IF(F34="if ND ou X < 7 years",0,IF(F34="if 7 years ≤ X < 9 years",7,IF(F34="if 9 years ≤ X < 11 years",9,IF(F34="if X ≥ 11 years",11,0)))) -> 0
A35: 1.1.F | B35: Technical manual of instructions for repair | D35: if 9 years ≤ X < 11 years | E35: 9 | F35: if NA or X < 7 years | G35: =IF(F35="if ND ou X < 7 years",0,IF(F35="if 7 years ≤ X < 9 years",7,IF(F35="if 9 years ≤ X < 11 years",9,IF(F35="if X ≥ 11 years",11,0)))) -> 0
A36: 1.1.G | B36: Diagnostic fault and error codes | D36: if NA or X < 7 years | E36: 0 | F36: if NA or X < 7 years | G36: =IF(F36="if ND ou X < 7 years",0,IF(F36="if 7 years ≤ X < 9 years",7,IF(F36="if 9 years ≤ X < 11 years",9,IF(F36="if X ≥ 11 years",11,0)))) -> 0
A37: 1.1.H | B37: Component and diagnosis information | D37: if X ≥ 11 years | E37: 11 | F37: if NA or X < 7 years | G37: =IF(F37="if ND ou X < 7 years",0,IF(F37="if 7 years ≤ X < 9 years",7,IF(F37="if 9 years ≤ X < 11 years",9,IF(F37="if X ≥ 11 years",11,0)))) -> 0
A38: 1.1.I | B38: Instructions for software and firmware (including reset software) | D38: if X ≥ 11 years | E38: 11 | F38: if X ≥ 11 years | G38: =IF(F38="if ND ou X < 7 years",0,IF(F38="if 7 years ≤ X < 9 years",7,IF(F38="if 9 years ≤ X < 11 years",9,IF(F38="if X ≥ 11 years",11,0)))) -> 11
A39: 1.1.J | B39: Information on how to access data records of reported failure incidents stored on the product | D39: if NA or X < 7 years | E39: 0 | F39: if NA or X < 7 years | G39: =IF(F39="if ND ou X < 7 years",0,IF(F39="if 7 years ≤ X < 9 years",7,IF(F39="if 9 years ≤ X < 11 years",9,IF(F39="if X ≥ 11 years",11,0)))) -> 0
A40: 1.1.K | B40: Technical bulletins | D40: if NA or X < 7 years | E40: =IF(D40="if ND ou X < 7 years",0,IF(D40="if 7 years ≤ X < 9 years",7,IF(D40="if 9 years ≤ X < 11 years",9,IF(D40="if X ≥ 11 years",11,0)))) -> 0 | F40: if NA or X < 7 years | G40: =IF(F40="if ND ou X < 7 years",0,IF(F40="if 7 years ≤ X < 9 years",7,IF(F40="if 9 years ≤ X < 11 years",9,IF(F40="if X ≥ 11 years",11,0)))) -> 0
A41: 1.1.L | B41: Specific guidance for self-repair (recommended operations, safety and repair instructions, any implications for the guarantee)* | F41: if NA or X < 7 years | G41: 0
A42: 1.1.M | B42: How to get access to professional repairers | F42: if X ≥ 11 years | G42: 11
A43: 1.1.N | B43: Failures detection and required action (consumers approach) | F43: if 7 years ≤ X < 9 years | G43: 7
A44: 1.1.O | B44: User and maintenance instructions | F44: if 7 years ≤ X < 9 years | G44: 7
A45: Total sub-criterion 1.1 | E45: =SUM(E30:E40) -> 60 | G45: =SUM(G30:G44) -> 43 | H45: =E45+G45 -> 103 | I45: /286
H46: =H45*10/286 -> 3.601398601 | I46: /10
A47: *Points corresponding to years of availability are only awarded if one or more operations are specified to consumers for self-repair, with adequate safety instructions, in a specific section entitled “self-repair”, for example into a technical manual or user and maintenance instructions. See article L. 441-5 of the French Consumer Code wich specifies the responsibility of the producer for self-repair.

Sheet C2_DISASSEMBLY
A1: CRITERION 2 : DISASSEMBLY, ACCESSIBILITY, TOOLS, FASTENERS | J1: Television
A4: PLEASE ANSWER THE FOLLOWING QUESTIONS : | E4: ANSWERS
A5: 1) | B5: Does the product have any internal power supply ? | E5: Yes
A6: 2) | B6: Does the porduct have any WiFi module ? | E6: Yes
A7: 3) | B7: Does the product have any Bluetooth module ? | E7: Yes
A9: SUB-CRITERION 2.1 : EASE OF DISASSEMBLY OF SPARE PARTS - BROKEN / MALFUNCTIONING PARTS (LIST 2)
A11: ADDITIONAL INFORMATIONS: | J11: PARTICULAR CASE OF TELEVISION
A12: Details of the dismantling steps can be found on the right side of this sheet and in Annex 3 grid. | J12: External power supply and remote control do not need to be disassembled for disassembly steps. For these parts, the steps counted shall be : disconnecting the power cord and removing accumulators and battery from remote control.
A21: Ease of disassembly | D21: Rating
A23: List 2 : Broken / malfunctioning parts | D23: Number of steps required to disassemble the spare part | E23: Subtotal
A24: 2.1.A | B24: Remote control* | D24: if DDi = 1 | E24: =IF(D24="if NA ou DDi ≥ 4",0,IF(D24="if DDi = 3",1,IF(D24="if DDi = 2",2,IF(D24="if DDi = 1",3,)))) -> 3
A26: 2.1.B | B26: External power supply
A28: 2.1.C | B28: Internal power suplly | D28: if DDi < 8 | E28: =IF(D28="if NA ou DDi ≥ 12",0,IF(D28="if 12 > DDi ≥ 10",1,IF(D28="if 10 > DDi ≥ 8",2,IF(D28="if DDi < 8",3,)))) -> 3
A30: 2.1.D | B30: Main board | D30: if DDi < 8 | E30: =IF(D30="if NA ou DDi ≥ 12",0,IF(D30="if 12 > DDi ≥ 10",1,IF(D30="if 10 > DDi ≥ 8",2,IF(D30="if DDi < 8",3,)))) -> 3
A32: 2.1.E | B32: Display panel/LCD panel | D32: if 12 > DDi ≥ 10 | E32: =IF(D32="if NA ou DDi ≥ 12",0,IF(D32="if 12 > DDi ≥ 10",1,IF(D32="if 10 > DDi ≥ 8",2,IF(D32="if DDi < 8",3,)))) -> 1
A34: Total sub-criterion 2.1 | E34: =IF(E5="Yes",SUM(E24,E28,E30,E32),SUM(E24,E30,E32)) -> 10 | F34: =IF(E5="Yes","/12","/9") -> /12
E35: =IF(E5="Yes",E34*10/12,E34*10/9) -> 8.333333333 | F35: /10
A36: * Requires only to remove accumulators and battery
A38: SUB-CRITERION 2.2 : NECESSARY TOOLS TO REMOVE SPARE PARTS - BROKEN / MALFUNCTIONING PARTS (LIST 2)
A40: ADDITIONAL INFORMATIONS:
A41: - Necessary tools to unitarily disassemble a spare part include all tools used to get access and disassemble the concerned part without causing
A42: damage to the product (which might include getting access to fasteners).
A43: - Tools used are classified according to the complexity of the operation to final users and the availability of tools.
A44: - In case of using different types of tools in the disassembly and reassembly sequences of a spare part, the worst score shall be considered.
A48: Necessary tools for disassembly | D48: Rating
A50: List 2 : Broken / malfunctioning parts | D50: Type of tools used for disassembly | E50: Subtotal
A51: 2.2.A | B51: Remote control | D51: D : Removable with no tool, with tools supplied with the product or with basic tools | E51: =IF(D51="A : Not removable",0,IF(D51="B : Removable with proprietary tools",1,IF(D51="C : Removable with specific tools",2,IF(D51="D : Removable with no tool, with tools supplied with the product or with basic tools",4,0)))) -> 4
A53: 2.2.B | B53: External power supply
A55: 2.2.C | B55: Internal power suplly | D55: D : Removable with no tool, with tools supplied with the product or with basic tools | E55: =IF(D55="A : Not removable",0,IF(D55="B : Removable with proprietary tools",1,IF(D55="C : Removable with specific tools",2,IF(D55="D : Removable with no tool, with tools supplied with the product or with basic tools",4,0)))) -> 4
A57: 2.2.D | B57: Main board | D57: D : Removable with no tool, with tools supplied with the product or with basic tools | E57: =IF(D57="A : Not removable",0,IF(D57="B : Removable with proprietary tools",1,IF(D57="C : Removable with specific tools",2,IF(D57="D : Removable with no tool, with tools supplied with the product or with basic tools",4,0)))) -> 4
A59: 2.2.E | B59: Display panel/LCD panel | D59: D : Removable with no tool, with tools supplied with the product or with basic tools | E59: =IF(D59="A : Not removable",0,IF(D59="B : Removable with proprietary tools",1,IF(D59="C : Removable with specific tools",2,IF(D59="D : Removable with no tool, with tools supplied with the product or with basic tools",4,0)))) -> 4
A61: Total sub-criterion 2.2 | E61: =IF(E5="Yes",SUM(E51,E55,E57,E59),SUM(E51,E57,E59)) -> 16 | F61: =IF(E5="Yes","/16","/12") -> /16
E62: =IF(E5="Yes",E61*10/16,E61*10/12) -> 10 | F62: /10
A64: SUB-CRITERION 2.3 : CHARACTERISTICS OF FASTENERS FOR THE ASSEMBLY OF SPARE PARTS (LISTS 1 AND 2)
A66: ADDITIONAL INFORMATIONS:
A67: - Fasteners : A hardware device that mechanically or magnetically connects or fixes two or more objects, parts or pieces. A fastener is generally
A68: non-permanent, i.e., it can be easily removed or disassembled without damaging the objects, parts or pieces connected or fixed together (e.g., screws
A69: or clips). Welds and some glues are in contrast to permanent fixings. Adhesives are considered non-reusable fasteners unless new ones are supplied
A70: with the spare part.
A71: - Fasteners removed are classified according to their accessibility, reusability, amovibility and also their constraints imposed to the product
A72: reparability (e.g. fasteners causing damage or leaving welding or glue residues which preclude reusabiliy of the removed part).
A73: - In case of removing different types of fasteners during the disassembly step of a spare part, the worst score shall be considered.
A76: Fasteners characteristics | D76: Rating
A78: List 1 : Functional parts List 2 : Broken / malfunctioning parts | D78: Type of fasteners | E78: Subtotal
A80: 2.3.A | B80: Rear cover | D80: C : Removable and reusable | E80: =IF(D80="A : Neither removable, nor reusable",0,IF(D80="B : Removable, but not reusable",1,IF(D80="C : Removable and reusable",2,0))) -> 2
A82: 2.3.B | B82: WiFi module | D82: C : Removable and reusable | E82: =IF(D82="A : Neither removable, nor reusable",0,IF(D82="B : Removable, but not reusable",1,IF(D82="C : Removable and reusable",2,0))) -> 2
A84: 2.3.C | B84: Bluetooth module | D84: C : Removable and reusable | E84: =IF(D84="A : Neither removable, nor reusable",0,IF(D84="B : Removable, but not reusable",1,IF(D84="C : Removable and reusable",2,0))) -> 2
A86: 2.3.D | B86: Infrared receiver (IR) | D86: C : Removable and reusable | E86: =IF(D86="A : Neither removable, nor reusable",0,IF(D86="B : Removable, but not reusable",1,IF(D86="C : Removable and reusable",2,0))) -> 2
A88: 2.3.E | B88: Loudspeaker | D88: C : Removable and reusable | E88: =IF(D88="A : Neither removable, nor reusable",0,IF(D88="B : Removable, but not reusable",1,IF(D88="C : Removable and reusable",2,0))) -> 2
A90: 2.3.F | B90: Connectors to connect external equipment (cable, antenna, USB, DVD and Blue-Ray) | D90: A : Neither removable, nor reusable | E90: =IF(D90="A : Neither removable, nor reusable",0,IF(D90="B : Removable, but not reusable",1,IF(D90="C : Removable and reusable",2,0))) -> 0
A92: 2.3.G | B92: Remote control | D92: C : Removable and reusable | E92: =IF(D92="A : Neither removable, nor reusable",0,IF(D92="B : Removable, but not reusable",1,IF(D92="C : Removable and reusable",2,0))) -> 2 | H92: E5 | I92: E6 | J92: E7 | K92: Sortie1 | L92: Sortie2
H93: YES | I93: YES | J93: YES | K93: "20" | L93: =IF(AND($E$5=H93,$E$6=I93,$E$7=J93),K93,"") -> "20"
A94: 2.3.H | B94: External power supply | H94: YES | I94: YES | J94: NO | K94: "18"
H95: YES | I95: NO | J95: YES | K95: "18"
A96: 2.3.I | B96: Internal power suplly | D96: C : Removable and reusable | E96: =IF(D96="A : Neither removable, nor reusable",0,IF(D96="B : Removable, but not reusable",1,IF(D96="C : Removable and reusable",2,0))) -> 2 | H96: YES | I96: NO | J96: NO | K96: "16"
H97: NO | I97: YES | J97: YES | K97: "18"
A98: 2.3.J | B98: Main board | D98: C : Removable and reusable | E98: =IF(D98="A : Neither removable, nor reusable",0,IF(D98="B : Removable, but not reusable",1,IF(D98="C : Removable and reusable",2,0))) -> 2 | H98: NO | I98: YES | J98: NO | K98: "16"
H99: NO | I99: NO | J99: YES | K99: "16"
A100: 2.3.K | B100: Display panel/LCD panel | D100: C : Removable and reusable | E100: =IF(D100="A : Neither removable, nor reusable",0,IF(D100="B : Removable, but not reusable",1,IF(D100="C : Removable and reusable",2,0))) -> 2 | H100: NO | I100: NO | J100: NO | K100: "14"
L101: =CONCATENATE(L93,L94,L95,L96,L97,L98,L99,L100) -> "20"
A102: Total sub-criterion 2.3 | E102: =SUM(E80:E101) -> 18 | F102: =IF(E5="Select a choice","/20",L103) -> /20 | L102: =MID($L$101,FIND("""",$L$101,1)+1,FIND("/",SUBSTITUTE($L$101,"""","/",2))-FIND("""",$L$101,1)-1) -> 20
E103: =IF(E5="Select a choice","0",E102*10/L102) -> 9 | F103: /10 | L103: ="/"&MID($L$101,FIND("""",$L$101,1)+1,FIND("/",SUBSTITUTE($L$101,"""","/",2))-FIND("""",$L$101,1)-1) -> /20

Sheet C3_AVAILABILITY_SP
A1: CRITERION 3 : AVAILABILITY OF SPARE PARTS | J1: Television
A4: SUB-CRITERION 3.1 : COMMITMENT ON THE AVAILABILITY OVER TIME OF SPARE PARTS - BROKEN/MALFUNCTIONING PARTS (LIST 2)
A6: ADDITIONAL INFORMATIONS:
A7: Definition of spare parts distributor: The definition of a spare parts distributor is given in the glossary appended to this manual.
A8: Commitments on the availability of spare parts and delivery times (except Sunday and fest days): To award points to the A columns,
A9: the producer should have his own in-house repair service (example: via the after-sales service).
A10: Whether for the period of availability of spare parts or the delivery time, the producer or the importer must retain, among all of
A11: their practices towards authorized and independent repairers, the period or the most penalizing time for each spare part. In the
A12: event that the producer or importer does not make spare parts available to independent repairers, then points are not awarded
A13: for criterion 3.
A14: In addition, in the event that the producer or importer does not have an approved repairers network, the points are awarded
A15: based on the most penalizing practices towards independent repairers.
A16: Delivery time: The delivery time is understood in working days between the day of the order and the day of arrival at the actor
A17: concerned.
A22: Commitment on the availability over time of spare parts (in years) | D22: Column A | F22: Column B | H22: Column C | J22: Column D
D23: Producer | F23: Spare parts retailers | H23: Repairers | J23: Consumers
A24: List 2 : Broken / malfunctioning parts | D24: Duration of availability | E24: Subtotal | F24: Duration of availability | G24: Subtotal | H24: Duration of availability | I24: Subtotal | J24: Duration of availability | K24: Subtotal
A25: 3.1.A | B25: Remote control | D25: if 7 years ≤ X < 9 years | E25: =IF(D25="if NA or X < 7 years",0,IF(D25="if 7 years ≤ X < 9 years",7,IF(D25="if 9 years ≤ X < 11 years",9,IF(D25="if X ≥ 11 years",11,0)))) -> 7 | F25: if 7 years ≤ X < 9 years | G25: =IF(F25="if NA or X < 7 years",0,IF(F25="if 7 years ≤ X < 9 years",7,IF(F25="if 9 years ≤ X < 11 years",9,IF(F25="if X ≥ 11 years",11,0)))) -> 7 | H25: if 7 years ≤ X < 9 years | I25: =IF(H25="if NA or X < 7 years",0,IF(H25="if 7 years ≤ X < 9 years",7,IF(H25="if 9 years ≤ X < 11 years",9,IF(H25="if X ≥ 11 years",11,0)))) -> 7 | J25: if NA or X < 7 years | K25: =IF(J25="if NA or X < 7 years",0,IF(J25="if 7 years ≤ X < 9 years",7,IF(J25="if 9 years ≤ X < 11 years",9,IF(J25="if X ≥ 11 years",11,0)))) -> 0
A27: 3.1.B | B27: External power supply | D27: Select a choice | E27: =IF(D27="if NA or X < 7 years",0,IF(D27="if 7 years ≤ X < 9 years",7,IF(D27="if 9 years ≤ X < 11 years",9,IF(D27="if X ≥ 11 years",11,0)))) -> 0 | F27: Select a choice | G27: =IF(F27="if NA or X < 7 years",0,IF(F27="if 7 years ≤ X < 9 years",7,IF(F27="if 9 years ≤ X < 11 years",9,IF(F27="if X ≥ 11 years",11,0)))) -> 0 | H27: Select a choice | I27: =IF(H27="if NA or X < 7 years",0,IF(H27="if 7 years ≤ X < 9 years",7,IF(H27="if 9 years ≤ X < 11 years",9,IF(H27="if X ≥ 11 years",11,0)))) -> 0 | J27: Select a choice | K27: =IF(J27="if NA or X < 7 years",0,IF(J27="if 7 years ≤ X < 9 years",7,IF(J27="if 9 years ≤ X < 11 years",9,IF(J27="if X ≥ 11 years",11,0)))) -> 0
A29: 3.1.C | B29: Internal power suplly | D29: if 7 years ≤ X < 9 years | E29: =IF(D29="if NA or X < 7 years",0,IF(D29="if 7 years ≤ X < 9 years",7,IF(D29="if 9 years ≤ X < 11 years",9,IF(D29="if X ≥ 11 years",11,0)))) -> 7 | F29: if 7 years ≤ X < 9 years | G29: =IF(F29="if NA or X < 7 years",0,IF(F29="if 7 years ≤ X < 9 years",7,IF(F29="if 9 years ≤ X < 11 years",9,IF(F29="if X ≥ 11 years",11,0)))) -> 7 | H29: if 7 years ≤ X < 9 years | I29: =IF(H29="if NA or X < 7 years",0,IF(H29="if 7 years ≤ X < 9 years",7,IF(H29="if 9 years ≤ X < 11 years",9,IF(H29="if X ≥ 11 years",11,0)))) -> 7 | J29: if NA or X < 7 years | K29: =IF(J29="if NA or X < 7 years",0,IF(J29="if 7 years ≤ X < 9 years",7,IF(J29="if 9 years ≤ X < 11 years",9,IF(J29="if X ≥ 11 years",11,0)))) -> 0
A31: 3.1.D | B31: Main board | D31: if 7 years ≤ X < 9 years | E31: =IF(D31="if NA or X < 7 years",0,IF(D31="if 7 years ≤ X < 9 years",7,IF(D31="if 9 years ≤ X < 11 years",9,IF(D31="if X ≥ 11 years",11,0)))) -> 7 | F31: if 7 years ≤ X < 9 years | G31: =IF(F31="if NA or X < 7 years",0,IF(F31="if 7 years ≤ X < 9 years",7,IF(F31="if 9 years ≤ X < 11 years",9,IF(F31="if X ≥ 11 years",11,0)))) -> 7 | H31: if 7 years ≤ X < 9 years | I31: =IF(H31="if NA or X < 7 years",0,IF(H31="if 7 years ≤ X < 9 years",7,IF(H31="if 9 years ≤ X < 11 years",9,IF(H31="if X ≥ 11 years",11,0)))) -> 7 | J31: if NA or X < 7 years | K31: =IF(J31="if NA or X < 7 years",0,IF(J31="if 7 years ≤ X < 9 years",7,IF(J31="if 9 years ≤ X < 11 years",9,IF(J31="if X ≥ 11 years",11,0)))) -> 0
A33: 3.1.E | B33: Display panel/LCD panel | D33: if 7 years ≤ X < 9 years | E33: =IF(D33="if NA or X < 7 years",0,IF(D33="if 7 years ≤ X < 9 years",7,IF(D33="if 9 years ≤ X < 11 years",9,IF(D33="if X ≥ 11 years",11,0)))) -> 7 | F33: if 7 years ≤ X < 9 years | G33: =IF(F33="if NA or X < 7 years",0,IF(F33="if 7 years ≤ X < 9 years",7,IF(F33="if 9 years ≤ X < 11 years",9,IF(F33="if X ≥ 11 years",11,0)))) -> 7 | H33: if 7 years ≤ X < 9 years | I33: =IF(H33="if NA or X < 7 years",0,IF(H33="if 7 years ≤ X < 9 years",7,IF(H33="if 9 years ≤ X < 11 years",9,IF(H33="if X ≥ 11 years",11,0)))) -> 7 | J33: if NA or X < 7 years | K33: =IF(J33="if NA or X < 7 years",0,IF(J33="if 7 years ≤ X < 9 years",7,IF(J33="if 9 years ≤ X < 11 years",9,IF(J33="if X ≥ 11 years",11,0)))) -> 0
A35: Total sub-criterion 3.1 | E35: =SUM(E25:E34) -> 28 | G35: =SUM(G25:G34) -> 28 | I35: =SUM(I25:I34) -> 28 | K35: =SUM(K25:K34) -> 0 | L35: =E35+G35+I35+K35 -> 84 | M35: /176
L36: =L35*10/176 -> 4.772727273 | M36: /10
A38: SUB-CRITERION 3.2 : COMMITMENT ON THE AVAILABILITY OVER TIME OF SPARE PARTS - FUNCTIONAL PARTS (LIST 1)
A42: Commitment on the availability over time of spare parts (in years) | D42: Column A | F42: Column B | H42: Column C | J42: Column D
D43: Producer | F43: Spare parts retailers | H43: Repairers | J43: Consumers
A44: List 1 : Functional parts | D44: Duration of availability | E44: Subtotal | F44: Duration of availability | G44: Subtotal | H44: Duration of availability | I44: Subtotal | J44: Duration of availability | K44: Subtotal
A45: 3.2.A | B45: Rear cover | D45: if X ≥ 11 years | E45: =IF(D45="if NA or X < 7 years",0,IF(D45="if 7 years ≤ X < 9 years",7,IF(D45="if 9 years ≤ X < 11 years",9,IF(D45="if X ≥ 11 years",11,0)))) -> 11 | F45: if X ≥ 11 years | G45: =IF(F45="if NA or X < 7 years",0,IF(F45="if 7 years ≤ X < 9 years",7,IF(F45="if 9 years ≤ X < 11 years",9,IF(F45="if X ≥ 11 years",11,0)))) -> 11 | H45: if X ≥ 11 years | I45: =IF(H45="if NA or X < 7 years",0,IF(H45="if 7 years ≤ X < 9 years",7,IF(H45="if 9 years ≤ X < 11 years",9,IF(H45="if X ≥ 11 years",11,0)))) -> 11 | J45: if X ≥ 11 years | K45: =IF(J45="if NA or X < 7 years",0,IF(J45="if 7 years ≤ X < 9 years",7,IF(J45="if 9 years ≤ X < 11 years",9,IF(J45="if X ≥ 11 years",11,0)))) -> 11
A47: 3.2.B | B47: WiFi module | D47: if X ≥ 11 years | E47: =IF(D47="if NA or X < 7 years",0,IF(D47="if 7 years ≤ X < 9 years",7,IF(D47="if 9 years ≤ X < 11 years",9,IF(D47="if X ≥ 11 years",11,0)))) -> 11 | F47: if X ≥ 11 years | G47: =IF(F47="if NA or X < 7 years",0,IF(F47="if 7 years ≤ X < 9 years",7,IF(F47="if 9 years ≤ X < 11 years",9,IF(F47="if X ≥ 11 years",11,0)))) -> 11 | H47: if X ≥ 11 years | I47: =IF(H47="if NA or X < 7 years",0,IF(H47="if 7 years ≤ X < 9 years",7,IF(H47="if 9 years ≤ X < 11 years",9,IF(H47="if X ≥ 11 years",11,0)))) -> 11 | J47: if X ≥ 11 years | K47: =IF(J47="if NA or X < 7 years",0,IF(J47="if 7 years ≤ X < 9 years",7,IF(J47="if 9 years ≤ X < 11 years",9,IF(J47="if X ≥ 11 years",11,0)))) -> 11
A49: 3.2.C | B49: Bluetooth module | D49: if X ≥ 11 years | E49: =IF(D49="if NA or X < 7 years",0,IF(D49="if 7 years ≤ X < 9 years",7,IF(D49="if 9 years ≤ X < 11 years",9,IF(D49="if X ≥ 11 years",11,0)))) -> 11 | F49: if X ≥ 11 years | G49: =IF(F49="if NA or X < 7 years",0,IF(F49="if 7 years ≤ X < 9 years",7,IF(F49="if 9 years ≤ X < 11 years",9,IF(F49="if X ≥ 11 years",11,0)))) -> 11 | H49: if X ≥ 11 years | I49: =IF(H49="if NA or X < 7 years",0,IF(H49="if 7 years ≤ X < 9 years",7,IF(H49="if 9 years ≤ X < 11 years",9,IF(H49="if X ≥ 11 years",11,0)))) -> 11 | J49: if X ≥ 11 years | K49: =IF(J49="if NA or X < 7 years",0,IF(J49="if 7 years ≤ X < 9 years",7,IF(J49="if 9 years ≤ X < 11 years",9,IF(J49="if X ≥ 11 years",11,0)))) -> 11
A51: 3.2.D | B51: Infrared receiver (IR) | D51: if X ≥ 11 years | E51: =IF(D51="if NA or X < 7 years",0,IF(D51="if 7 years ≤ X < 9 years",7,IF(D51="if 9 years ≤ X < 11 years",9,IF(D51="if X ≥ 11 years",11,0)))) -> 11 | F51: if X ≥ 11 years | G51: =IF(F51="if NA or X < 7 years",0,IF(F51="if 7 years ≤ X < 9 years",7,IF(F51="if 9 years ≤ X < 11 years",9,IF(F51="if X ≥ 11 years",11,0)))) -> 11 | H51: if X ≥ 11 years | I51: =IF(H51="if NA or X < 7 years",0,IF(H51="if 7 years ≤ X < 9 years",7,IF(H51="if 9 years ≤ X < 11 years",9,IF(H51="if X ≥ 11 years",11,0)))) -> 11 | J51: if X ≥ 11 years | K51: =IF(J51="if NA or X < 7 years",0,IF(J51="if 7 years ≤ X < 9 years",7,IF(J51="if 9 years ≤ X < 11 years",9,IF(J51="if X ≥ 11 years",11,0)))) -> 11
A53: 3.2.E | B53: Loudspeaker | D53: if X ≥ 11 years | E53: =IF(D53="if NA or X < 7 years",0,IF(D53="if 7 years ≤ X < 9 years",7,IF(D53="if 9 years ≤ X < 11 years",9,IF(D53="if X ≥ 11 years",11,0)))) -> 11 | F53: if X ≥ 11 years | G53: =IF(F53="if NA or X < 7 years",0,IF(F53="if 7 years ≤ X < 9 years",7,IF(F53="if 9 years ≤ X < 11 years",9,IF(F53="if X ≥ 11 years",11,0)))) -> 11 | H53: if X ≥ 11 years | I53: =IF(H53="if NA or X < 7 years",0,IF(H53="if 7 years ≤ X < 9 years",7,IF(H53="if 9 years ≤ X < 11 years",9,IF(H53="if X ≥ 11 years",11,0)))) -> 11 | J53: if X ≥ 11 years | K53: =IF(J53="if NA or X < 7 years",0,IF(J53="if 7 years ≤ X < 9 years",7,IF(J53="if 9 years ≤ X < 11 years",9,IF(J53="if X ≥ 11 years",11,0)))) -> 11
A55: 3.2.F | B55: Connectors to connect external equipment (cable, antenna, USB, DVD and Blue-Ray) | D55: if X ≥ 11 years | E55: =IF(D55="if NA or X < 7 years",0,IF(D55="if 7 years ≤ X < 9 years",7,IF(D55="if 9 years ≤ X < 11 years",9,IF(D55="if X ≥ 11 years",11,0)))) -> 11 | F55: if X ≥ 11 years | G55: =IF(F55="if NA or X < 7 years",0,IF(F55="if 7 years ≤ X < 9 years",7,IF(F55="if 9 years ≤ X < 11 years",9,IF(F55="if X ≥ 11 years",11,0)))) -> 11 | H55: if X ≥ 11 years | I55: =IF(H55="if NA or X < 7 years",0,IF(H55="if 7 years ≤ X < 9 years",7,IF(H55="if 9 years ≤ X < 11 years",9,IF(H55="if X ≥ 11 years",11,0)))) -> 11 | J55: if X ≥ 11 years | K55: =IF(J55="if NA or X < 7 years",0,IF(J55="if 7 years ≤ X < 9 years",7,IF(J55="if 9 years ≤ X < 11 years",9,IF(J55="if X ≥ 11 years",11,0)))) -> 11
A57: Total sub-criterion 3.2 | E57: =SUM(E45:E56) -> 66 | G57: =SUM(G45:G56) -> 66 | I57: =SUM(I45:I56) -> 66 | K57: =SUM(K45:K56) -> 66 | L57: =E57+G57+I57+K57 -> 264 | M57: =IF(AND('C2_DISASSEMBLY'!E6="No",'C2_DISASSEMBLY'!E7="No"),"/176",IF(OR('C2_DISASSEMBLY'!E6="No",'C2_DISASSEMBLY'!E7="No"),"/220","/264")) -> /264
L58: =IF(AND('C2_DISASSEMBLY'!E6="No",'C2_DISASSEMBLY'!E7="No"),(L57*10/176),IF(OR('C2_DISASSEMBLY'!E6="No",'C2_DISASSEMBLY'!E7="No"),(L57*10/220),(L57*10/264))) -> 10 | M58: /10
A60: SUB-CRITERION 3.3 : COMMITMENT ON THE DELIVERY TIME OF SPARE PARTS - BROKEN/MALFUNCTIONING PARTS (LIST 2)
A64: Commitment on the delivery time of spare parts (in working days) | D64: Column A | F64: Column B | H64: Column C | J64: Column D
D65: Producer | F65: Spare parts retailers | H65: Repairers | J65: Consumers
A66: List 2 : Broken / malfunctioning parts | D66: Delivery time | E66: Subtotal | F66: Delivery time | G66: Subtotal | H66: Delivery time | I66: Subtotal | J66: Delivery time | K66: Subtotal
A67: 3.3.A | B67: Remote control | D67: if X ≤ 3 days | E67: =IF(D67="if NA ou X>10 days",0,IF(D67="if 10 days ≥ X > 5 days",1,IF(D67="if 5 days ≥ X > 3 days",2, IF(D67="if X ≤ 3 days",3,0)))) -> 3 | F67: if X ≤ 3 days | G67: =IF(F67="if NA ou X>10 days",0,IF(F67="if 10 days ≥ X > 5 days",1,IF(F67="if 5 days ≥ X > 3 days",2, IF(F67="if X ≤ 3 days",3,0)))) -> 3 | H67: if 10 days ≥ X > 5 days | I67: =IF(H67="if NA ou X>10 days",0,IF(H67="if 10 days ≥ X > 5 days",1,IF(H67="if 5 days ≥ X > 3 days",2, IF(H67="if X ≤ 3 days",3,0)))) -> 1 | J67: if NA or X >10 days | K67: =IF(J67="if NA ou X>10 days",0,IF(J67="if 10 days ≥ X > 5 days",1,IF(J67="if 5 days ≥ X > 3 days",2, IF(J67="if X ≤ 3 days",3,0)))) -> 0
A69: 3.3.B | B69: External power supply | D69: Select a choice | E69: =IF(D69="if NA ou X>10 days",0,IF(D69="if 10 days ≥ X > 5 days",1,IF(D69="if 5 days ≥ X > 3 days",2, IF(D69="if X ≤ 3 days",3,0)))) -> 0 | F69: Select a choice | G69: 0 | H69: Select a choice | I69: =IF(H69="if NA ou X>10 days",0,IF(H69="if 10 days ≥ X > 5 days",1,IF(H69="if 5 days ≥ X > 3 days",2, IF(H69="if X ≤ 3 days",3,0)))) -> 0 | J69: Select a choice | K69: =IF(J69="if NA ou X>10 days",0,IF(J69="if 10 days ≥ X > 5 days",1,IF(J69="if 5 days ≥ X > 3 days",2, IF(J69="if X ≤ 3 days",3,0)))) -> 0
A71: 3.3.C | B71: Internal power suplly | D71: if X ≤ 3 days | E71: =IF(D71="if NA ou X>10 days",0,IF(D71="if 10 days ≥ X > 5 days",1,IF(D71="if 5 days ≥ X > 3 days",2, IF(D71="if X ≤ 3 days",3,0)))) -> 3 | F71: if X ≤ 3 days | G71: 3 | H71: if 10 days ≥ X > 5 days | I71: =IF(H71="if NA ou X>10 days",0,IF(H71="if 10 days ≥ X > 5 days",1,IF(H71="if 5 days ≥ X > 3 days",2, IF(H71="if X ≤ 3 days",3,0)))) -> 1 | J71: if NA or X >10 days | K71: =IF(J71="if NA ou X>10 days",0,IF(J71="if 10 days ≥ X > 5 days",1,IF(J71="if 5 days ≥ X > 3 days",2, IF(J71="if X ≤ 3 days",3,0)))) -> 0
A73: 3.3.D | B73: Main board | D73: if X ≤ 3 days | E73: =IF(D73="if NA ou X>10 days",0,IF(D73="if 10 days ≥ X > 5 days",1,IF(D73="if 5 days ≥ X > 3 days",2, IF(D73="if X ≤ 3 days",3,0)))) -> 3 | F73: if X ≤ 3 days | G73: 3 | H73: if 10 days ≥ X > 5 days | I73: =IF(H73="if NA ou X>10 days",0,IF(H73="if 10 days ≥ X > 5 days",1,IF(H73="if 5 days ≥ X > 3 days",2, IF(H73="if X ≤ 3 days",3,0)))) -> 1 | J73: if NA or X >10 days | K73: =IF(J73="if NA ou X>10 days",0,IF(J73="if 10 days ≥ X > 5 days",1,IF(J73="if 5 days ≥ X > 3 days",2, IF(J73="if X ≤ 3 days",3,0)))) -> 0
A75: 3.3.E | B75: Display panel/LCD panel | D75: if X ≤ 3 days | E75: =IF(D75="if NA ou X>10 days",0,IF(D75="if 10 days ≥ X > 5 days",1,IF(D75="if 5 days ≥ X > 3 days",2, IF(D75="if X ≤ 3 days",3,0)))) -> 3 | F75: if X ≤ 3 days | G75: 3 | H75: if 10 days ≥ X > 5 days | I75: =IF(H75="if NA ou X>10 days",0,IF(H75="if 10 days ≥ X > 5 days",1,IF(H75="if 5 days ≥ X > 3 days",2, IF(H75="if X ≤ 3 days",3,0)))) -> 1 | J75: if NA or X >10 days | K75: =IF(J75="if NA ou X>10 days",0,IF(J75="if 10 days ≥ X > 5 days",1,IF(J75="if 5 days ≥ X > 3 days",2, IF(J75="if X ≤ 3 days",3,0)))) -> 0
A77: Total sub-criterion 3.3 | E77: =SUM(E67:E76) -> 12 | G77: =SUM(G67:G76) -> 12 | I77: =SUM(I67:I76) -> 4 | K77: =SUM(K67:K76) -> 0 | L77: =E77+G77+I77+K77 -> 28 | M77: /48
L78: =L77*10/48 -> 5.833333333 | M78: /10
A80: SUB-CRITERION 3.4 : COMMITMENT ON THE DELIVERY TIME OF SPARE PARTS - FUNCTIONAL PARTS (LIST 1)
A84: Commitment on the delivery time of spare parts (in working days) | D84: Column A | F84: Column B | H84: Column C | J84: Column D
D85: Producer | F85: Spare parts retailers | H85: Repairers | J85: Consumers
A86: List 1 : Functional parts | D86: Delivery time | E86: Subtotal | F86: Delivery time | G86: Subtotal | H86: Delivery time | I86: Subtotal | J86: Delivery time | K86: Subtotal
A87: 3.4.A | B87: Rear cover | D87: if X ≤ 3 days | E87: =IF(D87="if NA ou X>10 days",0,IF(D87="if 10 days ≥ X > 5 days",1,IF(D87="if 5 days ≥ X > 3 days",2, IF(D87="if X ≤ 3 days",3,0)))) -> 3 | F87: if X ≤ 3 days | G87: =IF(F87="if NA ou X>10 days",0,IF(F87="if 10 days ≥ X > 5 days",1,IF(F87="if 5 days ≥ X > 3 days",2, IF(F87="if X ≤ 3 days",3,0)))) -> 3 | H87: if X ≤ 3 days | I87: =IF(H87="if NA ou X>10 days",0,IF(H87="if 10 days ≥ X > 5 days",1,IF(H87="if 5 days ≥ X > 3 days",2, IF(H87="if X ≤ 3 days",3,0)))) -> 3 | J87: if X ≤ 3 days | K87: =IF(J87="if NA ou X>10 days",0,IF(J87="if 10 days ≥ X > 5 days",1,IF(J87="if 5 days ≥ X > 3 days",2, IF(J87="if X ≤ 3 days",3,0)))) -> 3
A89: 3.4.B | B89: WiFi module | D89: if X ≤ 3 days | E89: =IF(D89="if NA ou X>10 days",0,IF(D89="if 10 days ≥ X > 5 days",1,IF(D89="if 5 days ≥ X > 3 days",2, IF(D89="if X ≤ 3 days",3,0)))) -> 3 | F89: if X ≤ 3 days | G89: 3 | H89: if X ≤ 3 days | I89: =IF(H89="if NA ou X>10 days",0,IF(H89="if 10 days ≥ X > 5 days",1,IF(H89="if 5 days ≥ X > 3 days",2, IF(H89="if X ≤ 3 days",3,0)))) -> 3 | J89: if X ≤ 3 days | K89: =IF(J89="if NA ou X>10 days",0,IF(J89="if 10 days ≥ X > 5 days",1,IF(J89="if 5 days ≥ X > 3 days",2, IF(J89="if X ≤ 3 days",3,0)))) -> 3
A91: 3.4.C | B91: Bluetooth module | D91: if X ≤ 3 days | E91: =IF(D91="if NA ou X>10 days",0,IF(D91="if 10 days ≥ X > 5 days",1,IF(D91="if 5 days ≥ X > 3 days",2, IF(D91="if X ≤ 3 days",3,0)))) -> 3 | F91: if X ≤ 3 days | G91: 3 | H91: if X ≤ 3 days | I91: =IF(H91="if NA ou X>10 days",0,IF(H91="if 10 days ≥ X > 5 days",1,IF(H91="if 5 days ≥ X > 3 days",2, IF(H91="if X ≤ 3 days",3,0)))) -> 3 | J91: if X ≤ 3 days | K91: =IF(J91="if NA ou X>10 days",0,IF(J91="if 10 days ≥ X > 5 days",1,IF(J91="if 5 days ≥ X > 3 days",2, IF(J91="if X ≤ 3 days",3,0)))) -> 3
A93: 3.4.D | B93: Infrared receiver (IR) | D93: if X ≤ 3 days | E93: =IF(D93="if NA ou X>10 days",0,IF(D93="if 10 days ≥ X > 5 days",1,IF(D93="if 5 days ≥ X > 3 days",2, IF(D93="if X ≤ 3 days",3,0)))) -> 3 | F93: if X ≤ 3 days | G93: 3 | H93: if X ≤ 3 days | I93: =IF(H93="if NA ou X>10 days",0,IF(H93="if 10 days ≥ X > 5 days",1,IF(H93="if 5 days ≥ X > 3 days",2, IF(H93="if X ≤ 3 days",3,0)))) -> 3 | J93: if X ≤ 3 days | K93: =IF(J93="if NA ou X>10 days",0,IF(J93="if 10 days ≥ X > 5 days",1,IF(J93="if 5 days ≥ X > 3 days",2, IF(J93="if X ≤ 3 days",3,0)))) -> 3
A95: 3.4.E | B95: Loudspeaker | D95: if X ≤ 3 days | E95: =IF(D95="if NA ou X>10 days",0,IF(D95="if 10 days ≥ X > 5 days",1,IF(D95="if 5 days ≥ X > 3 days",2, IF(D95="if X ≤ 3 days",3,0)))) -> 3 | F95: if X ≤ 3 days | G95: =IF(F95="if NA ou X>10 days",0,IF(F95="if 10 days ≥ X > 5 days",1,IF(F95="if 5 days ≥ X > 3 days",2, IF(F95="if X ≤ 3 days",3,0)))) -> 3 | H95: if X ≤ 3 days | I95: =IF(H95="if NA ou X>10 days",0,IF(H95="if 10 days ≥ X > 5 days",1,IF(H95="if 5 days ≥ X > 3 days",2, IF(H95="if X ≤ 3 days",3,0)))) -> 3 | J95: if X ≤ 3 days | K95: =IF(J95="if NA ou X>10 days",0,IF(J95="if 10 days ≥ X > 5 days",1,IF(J95="if 5 days ≥ X > 3 days",2, IF(J95="if X ≤ 3 days",3,0)))) -> 3
A97: 3.4.F | B97: Connectors to connect external equipment (cable, antenna, USB, DVD and Blue-Ray) | D97: if X ≤ 3 days | E97: =IF(D97="if NA ou X>10 days",0,IF(D97="if 10 days ≥ X > 5 days",1,IF(D97="if 5 days ≥ X > 3 days",2, IF(D97="if X ≤ 3 days",3,0)))) -> 3 | F97: if X ≤ 3 days | G97: =IF(F97="if NA ou X>10 days",0,IF(F97="if 10 days ≥ X > 5 days",1,IF(F97="if 5 days ≥ X > 3 days",2, IF(F97="if X ≤ 3 days",3,0)))) -> 3 | H97: if X ≤ 3 days | I97: =IF(H97="if NA ou X>10 days",0,IF(H97="if 10 days ≥ X > 5 days",1,IF(H97="if 5 days ≥ X > 3 days",2, IF(H97="if X ≤ 3 days",3,0)))) -> 3 | J97: if X ≤ 3 days | K97: =IF(J97="if NA ou X>10 days",0,IF(J97="if 10 days ≥ X > 5 days",1,IF(J97="if 5 days ≥ X > 3 days",2, IF(J97="if X ≤ 3 days",3,0)))) -> 3
A99: Total sub-criterion 3.4 | E99: =SUM(E87:E98) -> 18 | G99: =SUM(G87:G98) -> 18 | I99: =SUM(I87:I98) -> 18 | K99: =SUM(K87:K98) -> 18 | L99: =E99+G99+I99+K99 -> 72 | M99: =IF(AND('C2_DISASSEMBLY'!E6="No",'C2_DISASSEMBLY'!E7="No"),"/48",IF(OR('C2_DISASSEMBLY'!E6="No",'C2_DISASSEMBLY'!E7="No"),"/60","/72")) -> /72
L100: =IF(AND('C2_DISASSEMBLY'!E6="No",'C2_DISASSEMBLY'!E7="No"),(L99*10/48),IF(OR('C2_DISASSEMBLY'!E6="No",'C2_DISASSEMBLY'!E7="No"),(L99*10/60),(L99*10/72))) -> 10 | M100: /10

Sheet C4_PRICE
A1: CRITERION 4 : PRICE OF SPARE PARTS | L1: Television
A4: ADDITIONAL INFORMATIONS:
A5: Deduction of delivery costs: The principle adopted is to make a calculation excluding transport or delivery costs. If the latter are
A6: included in the tariffs of the general terms and conditions of sale, it is up to the producer or importer to deduct them in order to
A7: calculate the ratio. In particular for the price of spare parts, two methods are possible for deducting transport or delivery costs:
A8: individually for each of the parts in list 2 or on a flat-rate basis (in absolute value or as a percentage). The same applies to the
A9: price of new equipment.
A10: Spare part(s) forming part of a batch: If one or more of the parts in list 2 are part of a batch offered for sale or of any other subset of
A11: inseparable parts, the price of the part concerned is the price of this batch or subset.
A12: Part not available: In the event that, at the time the index is calculated, a part from list 2 is not available, the number of points
A13: awarded for criterion 4 relating to the price of spare parts is 0.
A14: Parts not managed by the producer or importer: If parts from list 2 are not managed by the producer or importer, the price of the
A15: parts to be considered is then that of the supplier's general terms and conditions of sale at the time of the index calculation.
A16: Options for products with the same reference: If options are offered for the same reference, and do not influence the technical
A17: characteristics for the purpose of calculating the index, then the calculation of the price ratio to be achieved is based on the
A18: price of spare parts and the price of the most current version of the product concerned.
A19: Absence of a part: If the equipment does not include a part listed in list 1 or 2 of the category concerned, then the price of the
A20: absent part does not appear in the calculation of the ratio.
A24: PRICE Criterion | G24: RATING
G25: Value (euros) | H25: Score (%) | I25: POINTS (/100) | J25: FINAL SCORE (/10)
A27: Pre-tax price of the most expensive spare part (list 2) | G27: 1871.59 | H27: =IF(ISERROR((($G$27+($G$28))/2)/$G$29),"0%",((($G$27+($G$28))/A45)/$G$29)) -> 0.1365534653 | I27: =IF(M27<0,0,IF(M27>100,100,MROUND(M27,5))) -> 80 | J27: =IF(M27/10<0,0,IF(M27/10>=10,10,MROUND(M27,5)/10)) -> 8 | K27: =IF(I27<0,"NOTE DE ZERO CAR SCORE HORS BAREME DE NOTATION") -> FALSE | M27: =IF(_xlfn.FORECAST.LINEAR($H$27,A43:A143,B43:B143)=150,0,_xlfn.FORECAST.LINEAR($H$27,A43:A143,B43:B143)) -> 81.72326737 | N27: =IF(M27/10<0,0,IF(M27/10>=10,10,M27/10 )) -> 8.172326737
A28: Average pre-tax price of other spare parts (list 2) | G28: 8.53
A29: Manufacturer's price pre-tax of concerned model | G29: 6884.19
A34: The number of points obtained for this criterion is determined as follows:
A35: - if the result is greater than 0.3 then the number of points is 0;
A36: - if the result is less than 0.1 then the number of points is 100;
A37: - if the result is between 0.1 and 0.3 then the number of points is determined according to the following correspondence table :
A40: DATA
A42: y | B42: x | C42: a | D42: b | E42: y ' | G42: x '
A43: 0 | B43: =$C$43*A43+$D$43 -> 0.3 | C43: -0.002 | D43: 0.3 | E43: 100 | F43: 0 | G43: =$C$43*E43+$D$43 -> 0.1 | H43: =IF($H$27>=G43,$H$27,IF($H$27<G43,-2.2)) -> 0.1365534653 | I43: 0.2
A44: 1 | B44: 0.298 | C44: -0.2 | D44: 0.3 | E44: 99 | F44: 0 | G44: 0.102 | H44: 0.1365534653 | I44: 0.2
A45: 2 | B45: 0.296 | C45: -0.2 | D45: 0.3 | E45: 98 | F45: 0 | G45: 0.104 | H45: 0.1365534653 | I45: 0.2
A46: 3 | B46: 0.294 | C46: -0.2 | D46: 0.3 | E46: 97 | F46: 0 | G46: 0.106 | H46: 0.1365534653 | I46: 0.2
A47: 4 | B47: 0.292 | C47: -0.2 | D47: 0.3 | E47: 96 | F47: 0 | G47: 0.108 | H47: 0.1365534653 | I47: 0.2
A48: 5 | B48: 0.29 | C48: -0.2 | D48: 0.3 | E48: 95 | F48: 0 | G48: 0.11 | H48: 0.1365534653 | I48: 0.2
A49: 6 | B49: 0.288 | C49: -0.2 | D49: 0.3 | E49: 94 | F49: 0 | G49: 0.112 | H49: 0.1365534653 | I49: 0.2
A50: 7 | B50: 0.286 | C50: -0.2 | D50: 0.3 | E50: 93 | F50: 0 | G50: 0.114 | H50: 0.1365534653 | I50: 0.2
A51: 8 | B51: 0.284 | C51: -0.2 | D51: 0.3 | E51: 92 | F51: 0 | G51: 0.116 | H51: 0.1365534653 | I51: 0.2
A52: 9 | B52: 0.282 | C52: -0.2 | D52: 0.3 | E52: 91 | F52: 0 | G52: 0.118 | H52: 0.1365534653 | I52: 0.2
A53: 10 | B53: 0.28 | C53: -0.2 | D53: 0.3 | E53: 90 | F53: 0 | G53: 0.12 | H53: 0.1365534653 | I53: 0.2
A54: 11 | B54: 0.278 | C54: -0.2 | D54: 0.3 | E54: 89 | F54: 0 | G54: 0.122 | H54: 0.1365534653 | I54: 0.2
A55: 12 | B55: 0.276 | C55: -0.2 | D55: 0.3 | E55: 88 | F55: 0 | G55: 0.124 | H55: 0.1365534653 | I55: 0.2
A56: 13 | B56: 0.274 | C56: -0.2 | D56: 0.3 | E56: 87 | F56: 0 | G56: 0.126 | H56: 0.1365534653 | I56: 0.2
A57: 14 | B57: 0.272 | C57: -0.2 | D57: 0.3 | E57: 86 | F57: 0 | G57: 0.128 | H57: 0.1365534653 | I57: 0.2
A58: 15 | B58: 0.27 | C58: -0.2 | D58: 0.3 | E58: 85 | F58: 0 | G58: 0.13 | H58: 0.1365534653 | I58: 0.2
A59: 16 | B59: 0.268 | C59: -0.2 | D59: 0.3 | E59: 84 | F59: 0 | G59: 0.132 | H59: 0.1365534653 | I59: 0.2
A60: 17 | B60: 0.266 | C60: -0.2 | D60: 0.3 | E60: 83 | F60: 0 | G60: 0.134 | H60: 0.1365534653 | I60: 0.2
A61: 18 | B61: 0.264 | C61: -0.2 | D61: 0.3 | E61: 82 | F61: 0 | G61: 0.136 | H61: 0.1365534653 | I61: 0.2
A62: 19 | B62: 0.262 | C62: -0.2 | D62: 0.3 | E62: 81 | F62: 0 | G62: 0.138 | H62: -2.2 | I62: 0.2
A63: 20 | B63: 0.26 | C63: -0.2 | D63: 0.3 | E63: 80 | F63: 0 | G63: 0.14 | H63: -2.2 | I63: 0.2
A64: 21 | B64: 0.258 | C64: -0.2 | D64: 0.3 | E64: 79 | F64: 0 | G64: 0.142 | H64: -2.2 | I64: 0.2
A65: 22 | B65: 0.256 | C65: -0.2 | D65: 0.3 | E65: 78 | F65: 0 | G65: 0.144 | H65: -2.2 | I65: 0.2
A66: 23 | B66: 0.254 | C66: -0.2 | D66: 0.3 | E66: 77 | F66: 0 | G66: 0.146 | H66: -2.2 | I66: 0.2
A67: 24 | B67: 0.252 | C67: -0.2 | D67: 0.3 | E67: 76 | F67: 0 | G67: 0.148 | H67: -2.2 | I67: 0.2
A68: 25 | B68: 0.25 | C68: -0.2 | D68: 0.3 | E68: 75 | F68: 0 | G68: 0.15 | H68: -2.2 | I68: 0.2
A69: 26 | B69: 0.248 | C69: -0.2 | D69: 0.3 | E69: 74 | F69: 0 | G69: 0.152 | H69: -2.2 | I69: 0.2
A70: 27 | B70: 0.246 | C70: -0.2 | D70: 0.3 | E70: 73 | F70: 0 | G70: 0.154 | H70: -2.2 | I70: 0.2
A71: 28 | B71: 0.244 | C71: -0.2 | D71: 0.3 | E71: 72 | F71: 0 | G71: 0.156 | H71: -2.2 | I71: 0.2
A72: 29 | B72: 0.242 | C72: -0.2 | D72: 0.3 | E72: 71 | F72: 0 | G72: 0.158 | H72: -2.2 | I72: 0.2
A73: 30 | B73: 0.24 | C73: -0.2 | D73: 0.3 | E73: 70 | F73: 0 | G73: 0.16 | H73: -2.2 | I73: 0.2
A74: 31 | B74: 0.238 | C74: -0.2 | D74: 0.3 | E74: 69 | F74: 0 | G74: 0.162 | H74: -2.2 | I74: 0.2
A75: 32 | B75: 0.236 | C75: -0.2 | D75: 0.3 | E75: 68 | F75: 0 | G75: 0.164 | H75: -2.2 | I75: 0.2
A76: 33 | B76: 0.234 | C76: -0.2 | D76: 0.3 | E76: 67 | F76: 0 | G76: 0.166 | H76: -2.2 | I76: 0.2
A77: 34 | B77: 0.232 | C77: -0.2 | D77: 0.3 | E77: 66 | F77: 0 | G77: 0.168 | H77: -2.2 | I77: 0.2
A78: 35 | B78: 0.23 | C78: -0.2 | D78: 0.3 | E78: 65 | F78: 0 | G78: 0.17 | H78: -2.2 | I78: 0.2
A79: 36 | B79: 0.228 | C79: -0.2 | D79: 0.3 | E79: 64 | F79: 0 | G79: 0.172 | H79: -2.2 | I79: 0.2
A80: 37 | B80: 0.226 | C80: -0.2 | D80: 0.3 | E80: 63 | F80: 0 | G80: 0.174 | H80: -2.2 | I80: 0.2
A81: 38 | B81: 0.224 | C81: -0.2 | D81: 0.3 | E81: 62 | F81: 0 | G81: 0.176 | H81: -2.2 | I81: 0.2
A82: 39 | B82: 0.222 | C82: -0.2 | D82: 0.3 | E82: 61 | F82: 0 | G82: 0.178 | H82: -2.2 | I82: 0.2
A83: 40 | B83: 0.22 | C83: -0.2 | D83: 0.3 | E83: 60 | F83: 0 | G83: 0.18 | H83: -2.2 | I83: 0.2
A84: 41 | B84: 0.218 | C84: -0.2 | D84: 0.3 | E84: 59 | F84: 0 | G84: 0.182 | H84: -2.2 | I84: 0.2
A85: 42 | B85: 0.216 | C85: -0.2 | D85: 0.3 | E85: 58 | F85: 0 | G85: 0.184 | H85: -2.2 | I85: 0.2
A86: 43 | B86: 0.214 | C86: -0.2 | D86: 0.3 | E86: 57 | F86: 0 | G86: 0.186 | H86: -2.2 | I86: 0.2
A87: 44 | B87: 0.212 | C87: -0.2 | D87: 0.3 | E87: 56 | F87: 0 | G87: 0.188 | H87: -2.2 | I87: 0.2
A88: 45 | B88: 0.21 | C88: -0.2 | D88: 0.3 | E88: 55 | F88: 0 | G88: 0.19 | H88: -2.2 | I88: 0.2
A89: 46 | B89: 0.208 | C89: -0.2 | D89: 0.3 | E89: 54 | F89: 0 | G89: 0.192 | H89: -2.2 | I89: 0.2
A90: 47 | B90: 0.206 | C90: -0.2 | D90: 0.3 | E90: 53 | F90: 0 | G90: 0.194 | H90: -2.2 | I90: 0.2
A91: 48 | B91: 0.204 | C91: -0.2 | D91: 0.3 | E91: 52 | F91: 0 | G91: 0.196 | H91: -2.2 | I91: 0.2
A92: 49 | B92: 0.202 | C92: -0.2 | D92: 0.3 | E92: 51 | F92: 0 | G92: 0.198 | H92: -2.2 | I92: 0.2
A93: 50 | B93: 0.2 | C93: -0.2 | D93: 0.3 | E93: 50 | F93: 0.2 | G93: 0.2 | H93: -2.2 | I93: 0.2
A94: 51 | B94: 0.198 | C94: -0.2 | D94: 0.3 | E94: 49 | F94: 0.2 | G94: 0.202 | H94: -2.2 | I94: -2.2
A95: 52 | B95: 0.196 | C95: -0.2 | D95: 0.3 | E95: 48 | F95: 0.2 | G95: 0.204 | H95: -2.2 | I95: -2.2
A96: 53 | B96: 0.194 | C96: -0.2 | D96: 0.3 | E96: 47 | F96: 0.2 | G96: 0.206 | H96: -2.2 | I96: -2.2
A97: 54 | B97: 0.192 | C97: -0.2 | D97: 0.3 | E97: 46 | F97: 0.2 | G97: 0.208 | H97: -2.2 | I97: -2.2
A98: 55 | B98: 0.19 | C98: -0.2 | D98: 0.3 | E98: 45 | F98: 0.2 | G98: 0.21 | H98: -2.2 | I98: -2.2
A99: 56 | B99: 0.188 | C99: -0.2 | D99: 0.3 | E99: 44 | F99: 0.2 | G99: 0.212 | H99: -2.2 | I99: -2.2
A100: 57 | B100: 0.186 | C100: -0.2 | D100: 0.3 | E100: 43 | F100: 0.2 | G100: 0.214 | H100: -2.2 | I100: -2.2
A101: 58 | B101: 0.184 | C101: -0.2 | D101: 0.3 | E101: 42 | F101: 0.2 | G101: 0.216 | H101: -2.2 | I101: -2.2
A102: 59 | B102: 0.182 | C102: -0.2 | D102: 0.3 | E102: 41 | F102: 0.2 | G102: 0.218 | H102: -2.2 | I102: -2.2
A103: 60 | B103: 0.18 | C103: -0.2 | D103: 0.3 | E103: 40 | F103: 0.2 | G103: 0.22 | H103: -2.2 | I103: -2.2
A104: 61 | B104: 0.178 | C104: -0.2 | D104: 0.3 | E104: 39 | F104: 0.2 | G104: 0.222 | H104: -2.2 | I104: -2.2
A105: 62 | B105: 0.176 | C105: -0.2 | D105: 0.3 | E105: 38 | F105: 0.2 | G105: 0.224 | H105: -2.2 | I105: -2.2
A106: 63 | B106: 0.174 | C106: -0.2 | D106: 0.3 | E106: 37 | F106: 0.2 | G106: 0.226 | H106: -2.2 | I106: -2.2
A107: 64 | B107: =$C$43*A107+$D$43 -> 0.172 | C107: -0.2 | D107: 0.3 | E107: 36 | F107: 0.2 | G107: =$C$43*E107+$D$43 -> 0.228 | H107: =IF($H$27>=G107,$H$27,IF($H$27<G107,-2.2)) -> -2.2 | I107: -2.2
A108: 65 | B108: 0.17 | C108: -0.2 | D108: 0.3 | E108: 35 | F108: 0.2 | G108: 0.23 | H108: -2.2 | I108: -2.2
A109: 66 | B109: 0.168 | C109: -0.2 | D109: 0.3 | E109: 34 | F109: 0.2 | G109: 0.232 | H109: -2.2 | I109: -2.2
A110: 67 | B110: 0.166 | C110: -0.2 | D110: 0.3 | E110: 33 | F110: 0.2 | G110: 0.234 | H110: -2.2 | I110: -2.2
A111: 68 | B111: 0.164 | C111: -0.2 | D111: 0.3 | E111: 32 | F111: 0.2 | G111: 0.236 | H111: -2.2 | I111: -2.2
A112: 69 | B112: 0.162 | C112: -0.2 | D112: 0.3 | E112: 31 | F112: 0.2 | G112: 0.238 | H112: -2.2 | I112: -2.2
A113: 70 | B113: 0.16 | C113: -0.2 | D113: 0.3 | E113: 30 | F113: 0.2 | G113: 0.24 | H113: -2.2 | I113: -2.2
A114: 71 | B114: 0.158 | C114: -0.2 | D114: 0.3 | E114: 29 | F114: 0.2 | G114: 0.242 | H114: -2.2 | I114: -2.2
A115: 72 | B115: 0.156 | C115: -0.2 | D115: 0.3 | E115: 28 | F115: 0.2 | G115: 0.244 | H115: -2.2 | I115: -2.2
A116: 73 | B116: 0.154 | C116: -0.2 | D116: 0.3 | E116: 27 | F116: 0.2 | G116: 0.246 | H116: -2.2 | I116: -2.2
A117: 74 | B117: 0.152 | C117: -0.2 | D117: 0.3 | E117: 26 | F117: 0.2 | G117: 0.248 | H117: -2.2 | I117: -2.2
A118: 75 | B118: 0.15 | C118: -0.2 | D118: 0.3 | E118: 25 | F118: 0.2 | G118: 0.25 | H118: -2.2 | I118: -2.2
A119: 76 | B119: 0.148 | C119: -0.2 | D119: 0.3 | E119: 24 | F119: 0.2 | G119: 0.252 | H119: -2.2 | I119: -2.2
A120: 77 | B120: 0.146 | C120: -0.2 | D120: 0.3 | E120: 23 | F120: 0.2 | G120: 0.254 | H120: -2.2 | I120: -2.2
A121: 78 | B121: 0.144 | C121: -0.2 | D121: 0.3 | E121: 22 | F121: 0.2 | G121: 0.256 | H121: -2.2 | I121: -2.2
A122: 79 | B122: 0.142 | C122: -0.2 | D122: 0.3 | E122: 21 | F122: 0.2 | G122: 0.258 | H122: -2.2 | I122: -2.2
A123: 80 | B123: 0.14 | C123: -0.2 | D123: 0.3 | E123: 20 | F123: 0.2 | G123: 0.26 | H123: -2.2 | I123: -2.2
A124: 81 | B124: 0.138 | C124: -0.2 | D124: 0.3 | E124: 19 | F124: 0.2 | G124: 0.262 | H124: -2.2 | I124: -2.2
A125: 82 | B125: 0.136 | C125: -0.2 | D125: 0.3 | E125: 18 | F125: 0.2 | G125: 0.264 | H125: -2.2 | I125: -2.2
A126: 83 | B126: 0.134 | C126: -0.2 | D126: 0.3 | E126: 17 | F126: 0.2 | G126: 0.266 | H126: -2.2 | I126: -2.2
A127: 84 | B127: 0.132 | C127: -0.2 | D127: 0.3 | E127: 16 | F127: 0.2 | G127: 0.268 | H127: -2.2 | I127: -2.2
A128: 85 | B128: 0.13 | C128: -0.2 | D128: 0.3 | E128: 15 | F128: 0.2 | G128: 0.27 | H128: -2.2 | I128: -2.2
A129: 86 | B129: 0.128 | C129: -0.2 | D129: 0.3 | E129: 14 | F129: 0.2 | G129: 0.272 | H129: -2.2 | I129: -2.2
A130: 87 | B130: 0.126 | C130: -0.2 | D130: 0.3 | E130: 13 | F130: 0.2 | G130: 0.274 | H130: -2.2 | I130: -2.2
A131: 88 | B131: 0.124 | C131: -0.2 | D131: 0.3 | E131: 12 | F131: 0.2 | G131: 0.276 | H131: -2.2 | I131: -2.2
A132: 89 | B132: 0.122 | C132: -0.2 | D132: 0.3 | E132: 11 | F132: 0.2 | G132: 0.278 | H132: -2.2 | I132: -2.2
A133: 90 | B133: 0.12 | C133: -0.2 | D133: 0.3 | E133: 10 | F133: 0.2 | G133: 0.28 | H133: -2.2 | I133: -2.2
A134: 91 | B134: 0.118 | C134: -0.2 | D134: 0.3 | E134: 9 | F134: 0.2 | G134: 0.282 | H134: -2.2 | I134: -2.2
A135: 92 | B135: 0.116 | C135: -0.2 | D135: 0.3 | E135: 8 | F135: 0.2 | G135: 0.284 | H135: -2.2 | I135: -2.2
A136: 93 | B136: 0.114 | C136: -0.2 | D136: 0.3 | E136: 7 | F136: 0.2 | G136: 0.286 | H136: -2.2 | I136: -2.2
A137: 94 | B137: 0.112 | C137: -0.2 | D137: 0.3 | E137: 6 | F137: 0.2 | G137: 0.288 | H137: -2.2 | I137: -2.2
A138: 95 | B138: 0.11 | C138: -0.2 | D138: 0.3 | E138: 5 | F138: 0.2 | G138: 0.29 | H138: -2.2 | I138: -2.2
A139: 96 | B139: 0.108 | C139: -0.2 | D139: 0.3 | E139: 4 | F139: 0.2 | G139: 0.292 | H139: -2.2 | I139: -2.2
A140: 97 | B140: 0.106 | C140: -0.2 | D140: 0.3 | E140: 3 | F140: 0.2 | G140: 0.294 | H140: -2.2 | I140: -2.2
A141: 98 | B141: 0.104 | C141: -0.2 | D141: 0.3 | E141: 2 | F141: 0.2 | G141: 0.296 | H141: -2.2 | I141: -2.2
A142: 99 | B142: 0.102 | C142: -0.2 | D142: 0.3 | E142: 1 | F142: 0.2 | G142: 0.298 | H142: -2.2 | I142: -2.2
A143: 100 | B143: 0.1 | C143: -0.2 | D143: 0.3 | E143: 0 | F143: 0.2 | G143: 0.3 | H143: -2.2 | I143: -2.2

Sheet C5_SPECIFIC
A1: CRITERION 5 : SPECIFIC CRITERION | J1: Television
A4: SUB-CRITERION 5.1 : ACCESSIBILITY OF USAGE-METER TO CONSUMERS
A6: ADDITIONAL INFORMATIONS :
A7: - Definition of the usage meter: The usage meter is a device that cumulatively records the use of the equipment in number of units. This counter can either be visible directly by the consumer each time the device is started up or require a voluntary operation on the part of the user to become aware of the value displayed by the usage counter.
A9: Unit of the usage meter: The unit considered is the number of hours of screen use.
A13: Usage-counter | D13: Column C
D14: Consumers
D15: Condition | E15: Subtotal
A16: 5.1.A | B16: Accessibility of usage-counter | D16: C : Visible or easily accessible | E16: =IF(D16="A : Absence",0,IF(D16="B : Not readily accessible",1,IF(D16="C : Visible or easily accessible",2,0))) -> 2
A17: Total sub-criterion 5.1 | E17: =SUM(E16:E16) -> 2 | F17: /2
E18: =E17*10/2 -> 10 | F18: /10
A20: SUB-CRITERION 5.2 : FREE REMOTE ASSISTANCE
A22: ADDITIONAL INFORMATIONS :
A23: - A remote assistance support means any system or device which help to easy find general informations in case of failures, to find information in order to identify causes of failures or to provide remote assistance to repair. This system must be able to provide a relevant technical support to consumers.
A25: - These remote supports include : remote informations (website, FAQ etc.), remote diagnosis assistance (hotline, chat, application/software included in the equipment, decision tree) or remote repair (hotline, visio, remote control etc.)
A27: - The remote assistance support must be free of charge (including telephone calls to a hotline).
A31: Remote assistance | F31: Column B | H31: Column C
F32: Repairers | H32: Consumers
F33: Condition | G33: Subtotal | H33: Condition | I33: Subtotal
A34: 5.2.A | B34: Type of remote assistance | F34: Up-to-date informations on website | G34: =IF(F34="Not available",0,IF(F34="Up-to-date informations on website",1,0)) -> 1 | H34: C : Remote diagnosis assistance | I34: =IF(H34="A : Note available",0,IF(H34="B : Remote informations",1,IF(H34="C : Remote diagnosis assistance",2,IF(H34="D : Remote support for repair",4,0)))) -> 2
A35: Total sub-criterion 5.2 | G35: =SUM(G34:G34) -> 1 | I35: =SUM(I34:I34) -> 2 | J35: =SUM(G35,I35) -> 3 | K35: /5
J36: =J35*10/5 -> 6 | K36: /10
A38: SUB-CRITERION 5.3 : POSSIBILITY TO RESET SOFTWARES
A40: ADDITIONAL INFORMATIONS :
A41: - The reset softwares means a specific feature or setting to restore (if allowed by the product) the value of a specific feature as set at the factory (to solve problems, bugs or malfunctions) and which is available when the consumer uses the product for the first time.
A46: Type de réinitialisation logicielle | D46: Column A | F46: Column B | H46: Column C
D47: Producer | F47: Repairers | H47: Consumers
D48: Condition (impossible/possible) | E48: Subtotal | F48: Condition (impossible/possible) | G48: Subtotal | H48: Condition (impossible/possible) | I48: Subtotal
A49: 5.3.A | B49: Electronic card reset | D49: Possible | E49: =IF(D49="Impossible",0,IF(D49="Possible",1,0)) -> 1 | F49: Possible | G49: =IF(F49="Impossible",0,IF(F49="Possible",1,0)) -> 1 | H49: Possible | I49: =IF(H49="Impossible",0,IF(H49="Possible",1,0)) -> 1
A50: 5.3.B | B50: Firmwares reset | D50: Possible | E50: =IF(D50="Impossible",0,IF(D50="Possible",1,0)) -> 1 | F50: Possible | G50: =IF(F50="Impossible",0,IF(F50="Possible",1,0)) -> 1 | H50: Possible | I50: =IF(H50="Impossible",0,IF(H50="Possible",1,0)) -> 1
A51: Total sub-criterion 5.3 | E51: =SUM(E49:E50) -> 2 | G51: =SUM(G49:G50) -> 2 | I51: =SUM(I49:I50) -> 2 | J51: =E51+G51+I51 -> 6 | K51: /6
J52: =J51*10/6 -> 10 | K52: /10

Sheet FINAL_SCORE
A1: REPAIRABILITY INDEX CALCULATION AND PRESENTATION OF THE PARAMETERS WHICH ALLOWED TO ESTABLISH IT | E1: Television
A5: Producer's or importer's name or trademark | C5: Loewe
A6: Producer or importer adress | C6: Loewe Technology GmbH, Industriestr. 11, 96317 Kronach
A7: Producer's or importer's model identifier | C7: iconic i.65
A8: Date of calculation | C8: 2023-09-13
A9: This final score sheet in English is only for guidance, the French version must be sent for official circulation
A11: Criteria | B11: Sub-criteria | E11: Score of subcriterion /10 | F11: Weighting factor of subcriterion | G11: Score of criterion /20 | H11: Total criteria scores /100
A16: CRITERION 1 : DOCUMENTATION | B16: 1.1 Availability of the technical documentation and other documentation related to user and maintenance instructions | E16: ='C1_DOCUMENTATION'!H46 -> 3.601398601 | F16: 2 | G16: =(E16*F16) -> 7.202797203 | H16: =SUM(G16:G27) -> 72.55885781
A17: CRITERION 2 : DISASSEMBLY, ACCESSIBILITY, TOOLS, FASTENERS | B17: 2.1 Ease of disassembly parts from List 2* | E17: ='C2_DISASSEMBLY'!E35 -> 8.333333333 | F17: 1 | G17: =(F17*E17)+(F18*E18)+(F19*E19) -> 17.83333333
B18: 2.2 Necessary tools (List 2) | E18: ='C2_DISASSEMBLY'!E62 -> 10 | F18: 0.5
B19: 2.3 Fasteners characteristics parts from List 1** and List 2 | E19: ='C2_DISASSEMBLY'!E103 -> 9 | F19: 0.5
A20: CRITERION 3 : AVAILABILITY OF SPARE PARTS | B20: 3.1 Availability over time parts from List 2 | E20: ='C3_AVAILABILITY_SP'!L36 -> 4.772727273 | F20: 1 | G20: =(F20*E20)+(F21*E21)+(F22*E22)+(F23*E23) -> 13.52272727
B21: 3.2 Availability over time parts from List 1 | E21: ='C3_AVAILABILITY_SP'!L58 -> 10 | F21: 0.5
B22: 3.3 Delivery time parts from List 2 | E22: ='C3_AVAILABILITY_SP'!L78 -> 5.833333333 | F22: 0.3
B23: 3.4 Delivery time parts from List 1 | E23: ='C3_AVAILABILITY_SP'!L100 -> 10 | F23: 0.2
A24: CRITERION 4 : PRICE OF SPARE PARTS | B24: 4. Ratio between price of parts from list 2 to the price of the product | E24: ='C4_PRICE'!J27 -> 8 | F24: 2 | G24: =E24*F24 -> 16
A25: CRITERION 5 : SPECIFIC CRITERION | B25: 5.1 Accessibility of usage-counter to consumers | E25: ='C5_SPECIFIC'!E18 -> 10 | F25: 1 | G25: =F25*E25+F26*E26+E27*F27 -> 18
B26: 5.2 Free remote assistance | E26: ='C5_SPECIFIC'!J36 -> 6 | F26: 0.5
B27: 5.3 Possibility to reset softwares | E27: ='C5_SPECIFIC'!J52 -> 10 | F27: 0.5
A28: Reparability index on 10 | H28: =ROUND(H16/10,1) -> 7.3
A30: * list 2: list of a maximum of 3 to 5 spare parts (depending on the category of equipment concerned) whose broken or malfunctioning parts are the most frequent; ** list 1: list of a maximum of 10 other spare parts (depending on the category of equipment concerned) whose good condition is necessary for the operation of the equipment.

Sheet NOTE_FINALE
A1: CALCUL DE L'INDICE DE RÉPARABILITÉ ET PRÉSENTATION DES PARAMÈTRES AYANT PERMIS DE L'ÉTABLIR | E1: Téléviseur
A4: FICHE D'INFORMATION À TRANSMETTRE AUX DEMANDEURS (cf. Article L. 541-9-2 du Code de l’environnement)
A6: Nom ou marque commerciale du producteur ou de l'importateur | C6: =FINAL_SCORE!C5 -> Loewe
A7: Adresse du producteur ou de l'importateur | C7: =FINAL_SCORE!C6 -> Loewe Technology GmbH, Industriestr. 11, 96317 Kronach
A8: Référence du modèle donnée par le producteur ou l'importateur | C8: =FINAL_SCORE!C7 -> iconic i.65
A9: Date du calcul | C9: =FINAL_SCORE!C8 -> 45182
A11: Critère | B11: Sous-critère | E11: Note du sous-critère sur 10 | F11: Coefficient du sous critère | G11: Note du critère sur 20 | H11: Total des notes des critères sur 100
A16: CRITÈRE 1 : DOCUMENTATION | B16: 1.1 Durée de disponibilité de la documentation technique et relative aux conseils d'utilisation et d'entretien | E16: =FINAL_SCORE!E16 -> 3.601398601 | F16: 2 | G16: =(E16*F16) -> 7.202797203 | H16: =SUM(G16:G27) -> 72.55885781
A17: CRITÈRE 2 : DÉMONTABILITÉ, ACCÈS, OUTILS, FIXATIONS | B17: 2.1 Facilité de démontage des pièces de la liste 2* | E17: =FINAL_SCORE!E17 -> 8.333333333 | F17: 1 | G17: =(F17*E17)+(F18*E18)+(F19*E19) -> 17.83333333
B18: 2.2 Outils nécessaires (liste 2) | E18: =FINAL_SCORE!E18 -> 10 | F18: 0.5
B19: 2.3 Caractéristiques des fixations entre les pièces de la liste 1** et de la liste 2 | E19: =FINAL_SCORE!E19 -> 9 | F19: 0.5
A20: CRITÈRE 3 : DISPONIBILITÉ DES PIÈCES DÉTACHÉES | B20: 3.1 Durée de disponibilité des pièces de la liste 2 | E20: =FINAL_SCORE!E20 -> 4.772727273 | F20: 1 | G20: =(F20*E20)+(F21*E21)+(F22*E22)+(F23*E23) -> 13.52272727
B21: 3.2 Durée de disponibilité des pièces de la liste 1 | E21: =FINAL_SCORE!E21 -> 10 | F21: 0.5
B22: 3.3 Délais de livraison des pièces de la liste 2 | E22: =FINAL_SCORE!E22 -> 5.833333333 | F22: 0.3
B23: 3.4 Délais de livraison des pièces de la liste 1 | E23: =FINAL_SCORE!E23 -> 10 | F23: 0.2
A24: CRITÈRE 4 : PRIX DES PIÈCES DÉTACHÉES | B24: 4. Rapport prix des pièces de la liste 2 sur prix de l’équipement neuf | E24: =FINAL_SCORE!E24 -> 8 | F24: 2 | G24: =E24*F24 -> 16
A25: CRITÈRE 5 : CRITÈRE SPÉCIFIQUE | B25: 5.1 Accessibilité du compteur d'usage | E25: =FINAL_SCORE!E25 -> 10 | F25: 1 | G25: =F25*E25+F26*E26+E27*F27 -> 18
B26: 5.2 Assistance à distance sans frais | E26: =FINAL_SCORE!E26 -> 6 | F26: 0.5
B27: 5.3 Possibilité de réinitialisation logicielle | E27: =FINAL_SCORE!E27 -> 10 | F27: 0.5
A28: Note de l'indice sur 10 | H28: =ROUND(H16/10,1) -> 7.3
A30: *liste 2 : liste des 3 à 5 pièces détachées au maximum (selon la catégorie d’équipements concernée) dont la casse ou les pannes sont les plus fréquentes ; **liste 1 : liste de 10 autres pièces détachées au maximum (selon la catégorie d’équipements concernée) dont le bon état est nécessaire au fonctionnement de l’équipement.

Sheet ANNEX_1
A1: ANNEX 1 : TERMINOLOGY USED FOR THE REPARABILITY INDEX
A4: The definitions of the following terms are specified in the decree relating to the repairability index for electrical and electronic equipment:
A5: "Making available onthe market", "Placing on the market", "producer", "importer", "distributor", "Seller", "distance selling", "model".
A7: Authorized repairer | B7: The authorized repairer is often referred to as a technical station or authorized service center. It is a professional repairer for whom one or more contracts precisely define the relationship between the authorized repairer and the producer(s). | C7: Based on the technical expertise of the repairability index working groups
A8: Independent repairer | B8: Independent repairers are repairers in the sense of "professional craftsmen repairers" designating repair companies listed in the trade directory with an APE or NAFA code. They are professional repairers who do not fall into the category of authorized repairers. For example, 95.11 Z-Z: Repair of computers and peripheral equipment; 95.21 Z-Z: Repair of televisions, radio receivers, VCRs, CD and DVD players, camcorders for domestic use; 95.22 Z-Z: Repair of household appliances and home and garden equipment.
A9: Professional repairer | B9: Authorized repairer or independent repairer.
A10: Distributor of spare parts | B10: Any moral or physica person in the supply chain, other than the producer or importer, who offers a spare part for sale. They are commonly referred to as "spare parts wholesalers". | C10: According to Standard NF EN 45554 "General methods for the evaluation of the repair, reuse and improvement capacity of energy-related products", 2020.
A11: Disassembly | B11: The process by which a product, spare part or fastener is disassembled so that it can then be reassembled and made operational.
A12: Reassembly | B12: The process by which a product, a spare part or a fastener is reassembled so as to fulfill its functional role and be made operational.
A13: Reuse / Reusable | B13: The process by which a product, spare part or fastener, having reached the end of its first use, is used for the same purpose for which it was designed. Reuse after a second or subsequent use(s) is also considered to be reuse.
A14: Factory Restoration | B14: A specific functionality or setting to be activated by the customer, if the product allows it, to restore the default value of a specific functionality of the device as set at the factory and available when the customer first uses the product. | C14: Inspired by the Commission regulation (EU) 2019/2021
A15: Update / Upgrade | B15: The process of improving the functionality, performance, capacity or aesthetics of a product. This process may involve changes to the software, firmware and/or a hardware component of the product. | C15: According to Standard NF EN 45554 "General methods for the evaluation of the repair, reuse and improvement capacity of energy-related products", 2020.
A16: Corrective update | B16: An update performed after a failure has been detected and intended to restore an asset or software to a state in which it can perform a required function. This type of update corrects hardware or software malfunctions or non-conformity but does not add new functionality. | C16: Inspired by the AFNOR NF EN 13306 X 60-319 standard of June 2011 "All the technical, administrative and management actions during the life cycle of an asset, intended to maintain or restore it to a state in which it can perform the required function "
A17: Evolutionary update | B17: Upgrading, which consists of gradually modifying the software application by adding new features or additional modules, or by replacing an existing function with another, or even by proposing a different approach.
A18: Fastener | B18: A hardware device that mechanically or magnetically connects or fixes two or more objects, parts or pieces. A fastener is generally non-permanent, i.e., it can be easily removed or disassembled without damaging the objects, parts or pieces connected or fixed together (e.g., screws or clips). Welds and some glues are in contrast to permanent fixings. Adhesives are considered non-reusable fasteners unless new ones are supplied with the spare part. | C18: Inspired by, "Fasteners - Their Needs and Types", Bright Hub Engineering, 2020.
A19: Reusable fastener | B19: See the definition of "reusable". | C19: According to Standard NF EN 45554 "General methods for the evaluation of the repair, reuse and improvement capacity of energy-related products", 2020.
A20: Removable fastener | B20: An original fastener system that can be completely removed (without causing damage or leaving residue).
A21: Proprietary tool | B21: A tool that is not commercially available and is owned exclusively by one party or company, and under which its use by another party (an end user or customer) involves copyright, license and/or cost. | C21: Inspired by Will Kenton, "Proprietary Technology", 2019.
A22: Part / Spare parts | B22: A unitary element in the composition of the equipment.
A25: VOCABULAIRE EUROPEEN
A27: Eco-conception des lave-linges | B27: Ecodesign of washing machines
A28: RÈGLEMENT (UE) 2019/2023 DE LA COMMISSION du 1er octobre 2019 établissant des exigences en matière d’écoconception applicables aux lave-linge ménagers et aux lave-linge séchants ménagers conformément à la directive 2009/125/CE du Parlement européen et du Conseil, modifiant le règlement (CE) no 1275/2008 de la Commission et abrogeant le règlement (UE) no 1015/2010 de la Commission. | B28: COMMISSION REGULATION (EU) 2019/2021 Of 1 October 2019 laying down ecodesign requirements for electronic displays pursuant to Directive 2009/125/EC of the European Parliament and of the Council, amending Commission Regulation (EC) No 1275/2008 and repealing Commission Regulation (EC) No 642/2009
A30: Liste des informations à fournir (documentation)
A32: → Les informations de réparation et d’entretien du lave-linge ménager ou du lave-linge séchant ménager mentionnées au point a) comprennent : | B32: → the household washing machine or household washer-dryer repair and maintenance information referred to in (a) shall include :
A34: une identification sans équivoque du lave-linge ménager ou du lave-linge séchant ménager | B34: the unequivocal household washing machine or household washer-dryer identification
A35: un schéma de démontage ou une vue éclatée | B35: a disassembly map or exploded view
A36: un manuel technique d’instructions relatives à la réparation | B36: technical manual of instructions for repair
A37: une liste du matériel de réparation et de test nécessaire | B37: list of necessary repair and test equipment
A38: les informations concernant les composants et le diagnostic (telles que les valeurs théoriques minimales et maximales pour les mesures) | B38: component and diagnosis information (such as minimum and maximum theoretical values for measurements)
A39: des schémas de câblage et de raccordement | B39: wiring and connection diagrams
A40: les codes d’erreur et de diagnostic (y compris les codes spécifiques au fabricant, le cas échéant) | B40: diagnostic fault and error codes (including manufacturer-specific codes, where applicable)
A41: les instructions pour l’installation des logiciels et micrologiciels pertinents, y compris les logiciels de réinitialisation | B41: instructions for installation of relevant software and firmware including reset software
A42: les informations sur les modalités d’accès aux données relatives aux incidents de défaillance signalés enregistrées dans le lave-linge ménager ou le lave-linge séchant ménager (le cas échéant) | B42: information on how to access data records of reported failure incidents stored on the household washing machine or washer-dryer (where applicable)
A44: Liste des pièces détachées à mettre à disposition
A46: Moteur et balais de moteur | B46: Motor and motor brushes
A47: Transmission entre moteur et tambour | B47: Transmission between motor and drum
A48: Pompes | B48: Pumps
A49: Amortisseurs et ressorts | B49: Shock absorbers and springs
A50: Tambour de lavage, croisillon de tambour et roulements correspondants (séparément ou en lot) | B50: Washing drum, drum spider and related ball bearings (separately or bundled)
A51: Générateurs de chaleurs et éléments chauffants, y compris les pompes à chaleur, (séparément ou groupés) | B51: Heaters and heating elements, including heat pumps (separately or bundled)
A52: Conduites et matériel connexe y compris l’ensemble des flexibles, vannes, filtres et systèmes aquastop (séparé­ment ou groupés) | B52: Piping and related equipment including all hoses, valves, filters and aquastops (separately or bundled)
A53: Cartes de circuit imprimé | B53: Printed circuit boards
A54: Affichages électroniques | B54: Electronic displays
A55: Manocontacts | B55: Pressure switches
A56: Thermostats et capteurs | B56: Thermostats and sensors
A57: Logiciels et micrologiciels, y compris logiciels de réinitialisation | B57: Software and firmware including reset software
A58: Portes | B58: Door
A59: Charnières et joints de porte | B59: Door hinge and seals
A60: Autres joints | B60: Other seals
A61: Assemblage de verrouillage de la porte | B61: Door locking assembly
A62: Accessoires en matière plastique tels que distributeurs de détergent | B62: Plastic peripherals such as detergent dispensers
A65: Eco-conception des dispositifs d’affichage | B65: Ecodesign of electronic displays
A66: REGLEMENT (UE) 2019/2021 DE LA COMMISSION du 1er octobre 2019 fixant les exigences en matière d’écoconception pour les dispositifs d’affichage électronique conformément à la directive 2019/125/CE du Parlement européen et du Conseil modifiant le règlement (CE) n°642/2009 de la Commission. | B66: COMMISSION REGULATION (EU) 2019/2021 of 1 October 2019 laying down ecodesign requirements for electronic displays pursuant to Directive 2009/125/EC of the European Parliament and of the Council, amending Commission Regulation (EC) No 1275/2008 and repealing Commission Regulation (EC) No 642/2009
A68: Liste des informations à fournir (documentation) - List of required informations for the consumer
A70: → Les informations disponibles sur la réparation et la maintenance comprennent : | B70: → The available repair and maintenance information shall include:
A72: une identification sans équivoque du lave-linge ménager ou du lave-linge séchant ménager | B72: the unequivocal appliance identification
A73: un schéma de démontage ou une vue éclatée | B73: a disassembly map or exploded view
A74: une liste du matériel de réparation et de test nécessaire | B74: list of necessary repair and test equipment
A75: les informations concernant les composants et le diagnostic (telles que les valeurs théoriques minimales et maximales pour les mesures) | B75: component and diagnosis information (such as minimum and maximum theoretical values for measurements)
A76: des schémas de câblage et de raccordement | B76: wiring and connection diagrams
A77: les codes d’erreur et de diagnostic (y compris les codes spécifiques au fabricant, le cas échéant) | B77: diagnostic fault and error codes (including manufacturer-specific codes, where applicable)
A78: les informations sur les modalités d’accès aux données relatives aux incidents de défaillance signalés enregistrées dans le lave-linge ménager ou le lave-linge séchant ménager (le cas échéant) | B78: information on how to access data records of reported failure incidents stored on the household washing machine or washer-dryer (where applicable)
A80: Liste des pièces détachées à mettre à disposition – List of spare parts to be made available
A82: Les sources d’alimentation internes | B82: Internal power supply
A83: Les sources d’alimentation externes | B83: External power supply
A84: Les connecteurs pour connecter les équipements externes (câble, antenne, USB, DVD et Blue-Ray) | B84: Connectors to connect external equipment (cable, antenna, usb, dvd and blue-ray)
A85: Les condensateurs | B85: Capacitors
A86: Les piles et accumulateurs | B86: Batteries and accumulators
A87: Les modules DVD/Blue-Ray le cas échéant | B87: DVD/Blue-Ray module
A88: Les modules HD/SSD | B88: HD/SSD module
A89: La télécommande | B89: Remote control

Sheet ANNEX_2
A1: ANNEX 2 : BASIC TOOLS AND THEIR REFERENCE STANDARDS
A3: According to the European Standard NF EN 45554 "General methods for the assessment of the ability to repair, reuse and upgrade energy-related products", 2020.
A6: Tool type | B6: Illustration | C6: Reference
B7: (informative example)
A8: Screwdriver for slotted heads, cross recess or for hexalobular recess heads | C8: ISO 2380, ISO 8764, ISO 10664
A9: Hexagon socket key | C9: ISO 2936
A10: Combination wrench | C10: ISO 7738
A11: Combination pliers | C11: ISO 5746
A12: Half round nose pliers | C12: ISO 5745
A13: Diagonal cutters | C13: ISO 5749
A14: Multigrip pliers (multiple slip joint pliers) | C14: ISO 8976
A15: Locking pliers
A16: Combination pliers for wire stripping and terminal crimping
A17: Prying lever
A18: Tweezers
A19: Hammer, steel head | C19: ISO 15601
A20: Utility knife (cutter) with snap-off blades
A21: Multimeter
A22: Voltage tester
A23: Soldering iron
A24: Hot glue gun
A25: Magnifying glass

Sheet ANNEX_3
A1: ANNEX 3 : DETAILS ABOUT THE CONCEPT OF DISASSEMBLY STEP AND APPLICATION CASE
